[Event "Live Chess"]
[Site "Chess.com"]
[Date "2024.06.02"]
[Round "-"]
[White "JohanKjeldahl"]
[Black "McCarthyStone"]
[Result "0-1"]
[WhiteElo "1796"]
[BlackElo "2455"]
[TimeControl "300"]
[EndTime "7:05:53 PDT"]
[Termination "McCarthyStone won by checkmate"]

1. c4 {[%clk 0:04:52.7]} 1... b6 {[%clk 0:04:58.4]} 2. d4 {[%clk 0:04:50.1]}
2... Nf6 {[%clk 0:04:55.1]} 3. Nc3 {[%clk 0:04:48.6]} 3... e6 {[%clk 0:04:54.4]}
4. e4 {[%clk 0:04:47.6]} 4... Bb4 {[%clk 0:04:53.7]} 5. f3 {[%clk 0:04:46]} 5...
d6 {[%clk 0:04:49.3]} 6. d5 {[%clk 0:04:40.8]} 6... e5 {[%clk 0:04:48.5]} 7.
Qa4+ {[%clk 0:04:38.4]} 7... Bd7 {[%clk 0:04:39.7]} 8. Qxb4 {[%clk 0:04:37.4]}
8... O-O {[%clk 0:04:39.6]} 9. Bd3 {[%clk 0:04:34.3]} 9... a5 {[%clk 0:04:39.5]}
10. Qb3 {[%clk 0:04:32.2]} 10... Nh5 {[%clk 0:04:39.4]} 11. Qc2 {[%clk 0:04:26]}
11... Na6 {[%clk 0:04:38.8]} 12. a3 {[%clk 0:04:23.2]} 12... Nc5 {[%clk
0:04:38.3]} 13. Nge2 {[%clk 0:04:11.9]} 13... Qh4+ {[%clk 0:04:37.7]} 14. g3
{[%clk 0:04:08.8]} 14... Qh3 {[%clk 0:04:37.2]} 15. Be3 {[%clk 0:04:04.5]} 15...
Qg2 {[%clk 0:04:33.2]} 16. O-O-O {[%clk 0:04:03]} 16... Qxf3 {[%clk 0:04:28.6]}
17. Bxc5 {[%clk 0:03:59.3]} 17... bxc5 {[%clk 0:04:28.3]} 18. Rdf1 {[%clk
0:03:57.4]} 18... Qg4 {[%clk 0:04:22.1]} 19. h3 {[%clk 0:03:50.6]} 19... Qg5+
{[%clk 0:04:13.8]} 20. Qd2 {[%clk 0:03:49.5]} 20... Qg6 {[%clk 0:04:12]} 21. g4
{[%clk 0:03:44.6]} 21... Nf6 {[%clk 0:04:11.3]} 22. Ng3 {[%clk 0:03:40.9]} 22...
Rab8 {[%clk 0:04:00.8]} 23. Nf5 {[%clk 0:03:39]} 23... Rfe8 {[%clk 0:03:57.3]}
24. Kc2 {[%clk 0:03:33.9]} 24... h6 {[%clk 0:03:56]} 25. Rb1 {[%clk 0:03:30.3]}
25... Nh7 {[%clk 0:03:54.2]} 26. Nb5 {[%clk 0:03:16]} 26... Rb7 {[%clk 0:03:37]}
27. Qxa5 {[%clk 0:03:12.4]} 27... Bxb5 {[%clk 0:03:25.3]} 28. cxb5 {[%clk
0:03:10.1]} 28... Ng5 {[%clk 0:03:24.4]} 29. h4 {[%clk 0:02:51]} 29... Nf3
{[%clk 0:03:23.5]} 30. Rhf1 {[%clk 0:02:41]} 30... Qxg4 {[%clk 0:03:15.4]} 31.
Qc3 {[%clk 0:02:26.1]} 31... Qg2+ {[%clk 0:03:08.4]} 32. Kb3 {[%clk 0:02:08]}
32... Nd2+ {[%clk 0:03:01.3]} 33. Ka2 {[%clk 0:02:03.5]} 33... Nxb1 {[%clk
0:02:55.2]} 34. Rxb1 {[%clk 0:02:02]} 34... Kh7 {[%clk 0:02:44.4]} 35. h5 {[%clk
0:01:54.8]} 35... g6 {[%clk 0:02:25.6]} 36. hxg6+ {[%clk 0:01:52.6]} 36... fxg6
{[%clk 0:02:25.5]} 37. Ne3 {[%clk 0:01:48.4]} 37... Qf2 {[%clk 0:02:24]} 38. Nc4
{[%clk 0:01:46.7]} 38... Qd4 {[%clk 0:02:22.6]} 39. Qd2 {[%clk 0:01:37.2]} 39...
Rxb5 {[%clk 0:02:15.3]} 40. Rh1 {[%clk 0:01:32.8]} 40... h5 {[%clk 0:02:14.2]}
41. Qe2 {[%clk 0:01:19.8]} 41... Reb8 {[%clk 0:01:47]} 42. Rxh5+ {[%clk
0:01:12.5]} 42... Kg7 {[%clk 0:01:20.4]} 43. Rh2 {[%clk 0:01:10.3]} 43... Rb3
{[%clk 0:01:19.6]} 44. Bb1 {[%clk 0:00:32.5]} 44... Rg3 {[%clk 0:00:44.5]} 45.
Rh1 {[%clk 0:00:25.2]} 45... Rf8 {[%clk 0:00:38.3]} 46. Qh2 {[%clk 0:00:23.2]}
46... Qxc4+ {[%clk 0:00:35.8]} 47. Ka1 {[%clk 0:00:21]} 47... Rgf3 {[%clk
0:00:08.3]} 48. Qh7+ {[%clk 0:00:18.4]} 48... Kf6 {[%clk 0:00:06.9]} 49. Qh4+
{[%clk 0:00:17.2]} 49... Kf7 {[%clk 0:00:06.5]} 50. Qh7+ {[%clk 0:00:15.7]}
50... Ke8 {[%clk 0:00:06.2]} 51. Qxg6+ {[%clk 0:00:14.4]} 51... Kd8 {[%clk
0:00:05.9]} 52. Qg5+ {[%clk 0:00:12.8]} 52... Kc8 {[%clk 0:00:05.3]} 53. Rh7
{[%clk 0:00:10.4]} 53... Qd4 {[%clk 0:00:05.2]} 54. Qg7 {[%clk 0:00:07.9]} 54...
Rxa3+ {[%clk 0:00:04.2]} 55. Ba2 {[%clk 0:00:04.7]} 55... Rf1# {[%clk
0:00:03.6]} 0-1

[Event "Live Chess"]
[Site "Chess.com"]
[Date "2024.06.02"]
[Round "-"]
[White "CheckThis4"]
[Black "missedJariChance"]
[Result "1-0"]
[WhiteElo "2680"]
[BlackElo "1382"]
[TimeControl "300"]
[EndTime "7:05:58 PDT"]
[Termination "CheckThis4 won by checkmate"]

1. d4 {[%clk 0:04:57.9]} 1... d5 {[%clk 0:04:57.3]} 2. Nc3 {[%clk 0:04:57.8]}
2... e6 {[%clk 0:04:52.2]} 3. e4 {[%clk 0:04:57.2]} 3... c5 {[%clk 0:04:42.5]}
4. exd5 {[%clk 0:04:49.4]} 4... exd5 {[%clk 0:04:40.7]} 5. Bb5+ {[%clk 0:04:49]}
5... Nc6 {[%clk 0:04:30.8]} 6. Nge2 {[%clk 0:04:47.9]} 6... Bd6 {[%clk
0:04:26.1]} 7. dxc5 {[%clk 0:04:46.7]} 7... Bxc5 {[%clk 0:04:18.9]} 8. Qxd5
{[%clk 0:04:45.4]} 8... Qxd5 {[%clk 0:04:04.6]} 9. Nxd5 {[%clk 0:04:45.3]} 9...
Bd6 {[%clk 0:03:57.9]} 10. Bf4 {[%clk 0:04:39.6]} 10... Bxf4 {[%clk 0:03:38.4]}
11. Nexf4 {[%clk 0:04:39.5]} 11... Kd8 {[%clk 0:02:54.4]} 12. O-O-O {[%clk
0:04:34.9]} 12... Bd7 {[%clk 0:02:50.7]} 13. Rhe1 {[%clk 0:04:32.1]} 13... Nf6
{[%clk 0:02:35.2]} 14. Nxf6 {[%clk 0:04:26.9]} 14... gxf6 {[%clk 0:02:33.9]} 15.
Nd5 {[%clk 0:04:26.4]} 15... a6 {[%clk 0:02:22.8]} 16. Nb6 {[%clk 0:04:22.7]}
16... Rc8 {[%clk 0:02:14.8]} 17. Rxd7# {[%clk 0:04:20.1]} 1-0

[Event "Live Chess"]
[Site "Chess.com"]
[Date "2024.06.02"]
[Round "-"]
[White "GerardATHart"]
[Black "gmnorfolk"]
[Result "0-1"]
[WhiteElo "1377"]
[BlackElo "2153"]
[TimeControl "300"]
[EndTime "7:06:08 PDT"]
[Termination "gmnorfolk won by checkmate"]

1. e4 {[%clk 0:04:57.1]} 1... c5 {[%clk 0:04:58.1]} 2. Nc3 {[%clk 0:04:55]} 2...
d6 {[%clk 0:04:56.8]} 3. d4 {[%clk 0:04:53.5]} 3... cxd4 {[%clk 0:04:54.6]} 4.
Qxd4 {[%clk 0:04:52.2]} 4... Nc6 {[%clk 0:04:53.1]} 5. Qd2 {[%clk 0:04:50.8]}
5... e6 {[%clk 0:04:51.9]} 6. b3 {[%clk 0:04:49.1]} 6... Nf6 {[%clk 0:04:50.8]}
7. Bb2 {[%clk 0:04:46.8]} 7... d5 {[%clk 0:04:48.9]} 8. exd5 {[%clk 0:04:45]}
8... exd5 {[%clk 0:04:47.5]} 9. O-O-O {[%clk 0:04:43.5]} 9... Be6 {[%clk
0:04:47.2]} 10. Nf3 {[%clk 0:04:41.3]} 10... Bb4 {[%clk 0:04:45.4]} 11. a3
{[%clk 0:03:47.5]} 11... Ne4 {[%clk 0:04:42.1]} 12. Qe3 {[%clk 0:03:36.2]} 12...
Bc5 {[%clk 0:04:35.7]} 13. Qe1 {[%clk 0:03:26.2]} 13... Nxf2 {[%clk 0:04:26.8]}
14. Rxd5 {[%clk 0:03:06.2]} 14... Nxh1 {[%clk 0:03:55.7]} 15. Rxc5 {[%clk
0:02:59.9]} 15... O-O {[%clk 0:03:47.1]} 16. g3 {[%clk 0:02:52.8]} 16... Re8
{[%clk 0:03:36.9]} 17. Bg2 {[%clk 0:02:42.7]} 17... Nd4 {[%clk 0:02:56.2]} 18.
Qxh1 {[%clk 0:02:32.1]} 18... Nf5 {[%clk 0:02:29.9]} 19. Nb5 {[%clk 0:01:34.7]}
19... Rc8 {[%clk 0:02:15.5]} 20. Rxc8 {[%clk 0:01:29.4]} 20... Qxc8 {[%clk
0:02:09.8]} 21. Nbd4 {[%clk 0:01:27.3]} 21... Ne3 {[%clk 0:01:59.8]} 22. Nxe6
{[%clk 0:01:24.7]} 22... Qxc2# {[%clk 0:01:56.7]} 0-1

[Event "Live Chess"]
[Site "Chess.com"]
[Date "2024.06.02"]
[Round "-"]
[White "resipsa6"]
[Black "degringolade64"]
[Result "1/2-1/2"]
[WhiteElo "2034"]
[BlackElo "2086"]
[TimeControl "300"]
[EndTime "7:06:34 PDT"]
[Termination "Game drawn - insufficient material"]

1. Nf3 {[%clk 0:04:59]} 1... d5 {[%clk 0:04:58]} 2. g3 {[%clk 0:04:58.2]} 2...
Bg4 {[%clk 0:04:56.1]} 3. Bg2 {[%clk 0:04:57.5]} 3... Nd7 {[%clk 0:04:54.1]} 4.
b3 {[%clk 0:04:56.6]} 4... e6 {[%clk 0:04:49.3]} 5. Bb2 {[%clk 0:04:55.4]} 5...
Ngf6 {[%clk 0:04:47.2]} 6. O-O {[%clk 0:04:52]} 6... a5 {[%clk 0:04:44.5]} 7. a4
{[%clk 0:04:50.9]} 7... c6 {[%clk 0:04:42.1]} 8. d4 {[%clk 0:04:50.2]} 8... Be7
{[%clk 0:04:39.9]} 9. Nbd2 {[%clk 0:04:49.4]} 9... h6 {[%clk 0:04:38.3]} 10. Ne5
{[%clk 0:04:44.6]} 10... Nxe5 {[%clk 0:04:32.3]} 11. dxe5 {[%clk 0:04:44.3]}
11... Nd7 {[%clk 0:04:31.7]} 12. h3 {[%clk 0:04:42.8]} 12... Bf5 {[%clk
0:04:28.4]} 13. e4 {[%clk 0:04:41.9]} 13... dxe4 {[%clk 0:04:23.5]} 14. Nxe4
{[%clk 0:04:41]} 14... Bxe4 {[%clk 0:04:20.6]} 15. Bxe4 {[%clk 0:04:39.7]} 15...
Nc5 {[%clk 0:04:14.7]} 16. Qxd8+ {[%clk 0:04:37.7]} 16... Rxd8 {[%clk
0:04:12.9]} 17. Bf3 {[%clk 0:04:26.6]} 17... Rd2 {[%clk 0:04:09.8]} 18. Rac1
{[%clk 0:04:25.2]} 18... O-O {[%clk 0:04:03.8]} 19. Rfd1 {[%clk 0:04:23.3]}
19... Rfd8 {[%clk 0:04:01.5]} 20. Kf1 {[%clk 0:04:21.8]} 20... Na6 {[%clk
0:03:47.2]} 21. Ke1 {[%clk 0:04:20.6]} 21... Bb4 {[%clk 0:03:35.2]} 22. c3
{[%clk 0:04:00.1]} 22... Rxd1+ {[%clk 0:03:31.9]} 23. Rxd1 {[%clk 0:03:42.5]}
23... Rxd1+ {[%clk 0:03:29.6]} 24. Kxd1 {[%clk 0:03:42.4]} 24... Bc5 {[%clk
0:03:29]} 25. Ke2 {[%clk 0:03:33.1]} 25... Kf8 {[%clk 0:03:24.2]} 26. Bc1 {[%clk
0:03:29.9]} 26... Be7 {[%clk 0:03:15.4]} 27. Bd2 {[%clk 0:03:27.2]} 27... Nc5
{[%clk 0:03:13.6]} 28. b4 {[%clk 0:03:24.1]} 28... Nb3 {[%clk 0:02:56.7]} 29. b5
{[%clk 0:03:18.9]} 29... cxb5 {[%clk 0:02:47.1]} 30. axb5 {[%clk 0:03:16.8]}
30... b6 {[%clk 0:02:39.5]} 31. Be3 {[%clk 0:03:13.8]} 31... Bc5 {[%clk
0:02:37.8]} 32. Bxc5+ {[%clk 0:03:03.5]} 32... Nxc5 {[%clk 0:02:36.6]} 33. Kd2
{[%clk 0:02:58]} 33... Ke7 {[%clk 0:02:19.3]} 34. Bc6 {[%clk 0:02:50.8]} 34...
a4 {[%clk 0:02:16.2]} 35. Kc2 {[%clk 0:02:48.1]} 35... a3 {[%clk 0:02:13.6]} 36.
f4 {[%clk 0:02:38.5]} 36... g5 {[%clk 0:02:02.5]} 37. fxg5 {[%clk 0:02:26.4]}
37... hxg5 {[%clk 0:02:01]} 38. h4 {[%clk 0:02:08.7]} 38... gxh4 {[%clk
0:01:59.5]} 39. gxh4 {[%clk 0:02:08.6]} 39... f6 {[%clk 0:01:58.8]} 40. exf6+
{[%clk 0:01:51.3]} 40... Kxf6 {[%clk 0:01:58.7]} 41. Kb1 {[%clk 0:01:48.6]}
41... e5 {[%clk 0:01:49.7]} 42. Ka2 {[%clk 0:01:47]} 42... e4 {[%clk 0:01:48.8]}
43. Kxa3 {[%clk 0:01:44.8]} 43... e3 {[%clk 0:01:47.9]} 44. Bf3 {[%clk
0:01:43.6]} 44... Ke5 {[%clk 0:01:40.5]} 45. Kb2 {[%clk 0:01:41.7]} 45... Nd3+
{[%clk 0:01:26.4]} 46. Kb1 {[%clk 0:01:19.1]} 46... Nf4 {[%clk 0:01:24.8]} 47.
Kc2 {[%clk 0:01:16]} 47... Kd6 {[%clk 0:01:16.6]} 48. h5 {[%clk 0:01:11.4]}
48... Kc5 {[%clk 0:01:15.4]} 49. h6 {[%clk 0:01:10.3]} 49... Ng6 {[%clk
0:01:13.7]} 50. Kd3 {[%clk 0:01:08.5]} 50... Kxb5 {[%clk 0:01:12.9]} 51. Kxe3
{[%clk 0:01:07.7]} 51... Kc5 {[%clk 0:01:10.6]} 52. Be4 {[%clk 0:01:06.7]} 52...
Nh8 {[%clk 0:01:08.2]} 53. Kd3 {[%clk 0:01:04]} 53... b5 {[%clk 0:01:06.5]} 54.
h7 {[%clk 0:01:03.2]} 54... b4 {[%clk 0:00:52.9]} 55. c4 {[%clk 0:00:55.4]}
55... b3 {[%clk 0:00:49.3]} 56. Bd5 {[%clk 0:00:44.4]} 56... Kb4 {[%clk
0:00:32.1]} 57. Kd2 {[%clk 0:00:39.6]} 57... Ka3 {[%clk 0:00:28.5]} 58. Kc1
{[%clk 0:00:37.7]} 58... Kb4 {[%clk 0:00:25.7]} 59. Kb2 {[%clk 0:00:36]} 59...
Ng6 {[%clk 0:00:24.4]} 60. Bf7 {[%clk 0:00:32]} 60... Nh8 {[%clk 0:00:21.8]} 61.
Bg8 {[%clk 0:00:22.1]} 61... Ng6 {[%clk 0:00:19.4]} 62. Bf7 {[%clk 0:00:15]}
62... Nh8 {[%clk 0:00:18.1]} 63. Bd5 {[%clk 0:00:11.1]} 63... Ng6 {[%clk
0:00:16.8]} 64. Bf3 {[%clk 0:00:08.3]} 64... Kxc4 {[%clk 0:00:13.8]} 65. Bh5
{[%clk 0:00:07.9]} 65... Nh8 {[%clk 0:00:12.5]} 66. Be2+ {[%clk 0:00:07.3]}
66... Kd5 {[%clk 0:00:11.6]} 67. Kxb3 {[%clk 0:00:06.9]} 67... Ke6 {[%clk
0:00:11.2]} 68. Bd3 {[%clk 0:00:06.4]} 68... Kf7 {[%clk 0:00:10.6]} 69. Kc4
{[%clk 0:00:06]} 69... Kg7 {[%clk 0:00:09.8]} 70. Kd5 {[%clk 0:00:05.5]} 70...
Nf7 {[%clk 0:00:09.1]} 71. Ke6 {[%clk 0:00:04.5]} 71... Ng5+ {[%clk 0:00:06.7]}
72. Ke7 {[%clk 0:00:03.3]} 72... Nxh7 {[%clk 0:00:06.4]} 1/2-1/2

[Event "Live Chess"]
[Site "Chess.com"]
[Date "2024.06.02"]
[Round "-"]
[White "Pandreq"]
[Black "Ferrarifan27"]
[Result "0-1"]
[WhiteElo "1249"]
[BlackElo "2140"]
[TimeControl "300"]
[EndTime "7:06:38 PDT"]
[Termination "Ferrarifan27 won on time"]

1. d4 {[%clk 0:04:57.6]} 1... Nf6 {[%clk 0:04:58.6]} 2. c4 {[%clk 0:04:56.2]}
2... e6 {[%clk 0:04:56.2]} 3. Nc3 {[%clk 0:04:55.6]} 3... Bb4 {[%clk 0:04:53.5]}
4. Bd2 {[%clk 0:04:54.1]} 4... c5 {[%clk 0:04:51.2]} 5. d5 {[%clk 0:04:48.5]}
5... O-O {[%clk 0:04:44.7]} 6. a3 {[%clk 0:04:42.7]} 6... Ba5 {[%clk 0:04:39.7]}
7. Nf3 {[%clk 0:04:37.5]} 7... d6 {[%clk 0:04:38.8]} 8. e3 {[%clk 0:04:26.8]}
8... e5 {[%clk 0:04:37.7]} 9. Bd3 {[%clk 0:04:09.1]} 9... Bg4 {[%clk 0:04:35.1]}
10. Bc2 {[%clk 0:03:59.3]} 10... Re8 {[%clk 0:04:30.3]} 11. e4 {[%clk
0:03:55.3]} 11... Nbd7 {[%clk 0:04:25.6]} 12. O-O {[%clk 0:03:51.6]} 12... a6
{[%clk 0:04:13.9]} 13. Qe1 {[%clk 0:03:30.3]} 13... Bxf3 {[%clk 0:04:09.5]} 14.
gxf3 {[%clk 0:03:29.2]} 14... Nh5 {[%clk 0:04:07.3]} 15. Kh1 {[%clk 0:03:26]}
15... Qh4 {[%clk 0:04:05.1]} 16. Rg1 {[%clk 0:03:20.2]} 16... Qh3 {[%clk
0:03:56.2]} 17. Bd1 {[%clk 0:03:06.5]} 17... Nb6 {[%clk 0:03:31.8]} 18. b3
{[%clk 0:02:54.3]} 18... Bxc3 {[%clk 0:03:24]} 19. Bxc3 {[%clk 0:02:52.8]} 19...
Nf4 {[%clk 0:03:23.1]} 20. Qf1 {[%clk 0:02:46.6]} 20... Qxf1 {[%clk 0:03:16.9]}
21. Rxf1 {[%clk 0:02:44.7]} 21... Rf8 {[%clk 0:03:09]} 22. Bd2 {[%clk 0:02:37]}
22... Nh5 {[%clk 0:03:04.5]} 23. Rg1 {[%clk 0:02:34.5]} 23... g6 {[%clk
0:02:53.6]} 24. Rg5 {[%clk 0:02:10.5]} 24... f6 {[%clk 0:02:50.8]} 25. Rg4
{[%clk 0:02:02.3]} 25... f5 {[%clk 0:02:49.6]} 26. exf5 {[%clk 0:01:57]} 26...
Rxf5 {[%clk 0:02:47.8]} 27. Be2 {[%clk 0:01:44.4]} 27... Raf8 {[%clk 0:02:45]}
28. Rag1 {[%clk 0:01:34.2]} 28... Nf4 {[%clk 0:02:43]} 29. Bxf4 {[%clk
0:01:27.1]} 29... Rxf4 {[%clk 0:02:42.9]} 30. R1g2 {[%clk 0:01:01.9]} 30... Nd7
{[%clk 0:02:37.8]} 31. h3 {[%clk 0:00:57.1]} 31... R4f5 {[%clk 0:02:27.4]} 32.
Kh2 {[%clk 0:00:42]} 32... Nf6 {[%clk 0:02:26]} 33. R4g3 {[%clk 0:00:40.3]}
33... Nh5 {[%clk 0:02:24.2]} 34. Rg4 {[%clk 0:00:37.2]} 34... Nf4 {[%clk
0:02:22.9]} 35. Rxf4 {[%clk 0:00:31.9]} 35... Rxf4 {[%clk 0:02:21.1]} 36. Rg4
{[%clk 0:00:25.2]} 36... Rxg4 {[%clk 0:02:18.4]} 37. hxg4 {[%clk 0:00:25.1]}
37... e4 {[%clk 0:02:15.6]} 38. Kg3 {[%clk 0:00:23.2]} 38... exf3 {[%clk
0:02:14.7]} 39. Bxf3 {[%clk 0:00:22.1]} 39... h6 {[%clk 0:02:11.4]} 40. Be4
{[%clk 0:00:20.9]} 40... Kg7 {[%clk 0:02:10.3]} 41. f3 {[%clk 0:00:19.6]} 41...
h5 {[%clk 0:02:07.1]} 42. g5 {[%clk 0:00:14.5]} 42... b5 {[%clk 0:02:04.9]} 43.
cxb5 {[%clk 0:00:09.3]} 43... axb5 {[%clk 0:02:03.9]} 0-1

[Event "Live Chess"]
[Site "Chess.com"]
[Date "2024.06.02"]
[Round "-"]
[White "GEMdzq"]
[Black "DoctorMantisTobogganMD"]
[Result "0-1"]
[WhiteElo "2285"]
[BlackElo "2220"]
[TimeControl "300"]
[EndTime "7:06:59 PDT"]
[Termination "DoctorMantisTobogganMD won on time"]

1. e4 {[%clk 0:04:57.7]} 1... c6 {[%clk 0:04:58.9]} 2. d4 {[%clk 0:04:56.3]}
2... g6 {[%clk 0:04:57.8]} 3. h4 {[%clk 0:04:53.7]} 3... h5 {[%clk 0:04:56.1]}
4. Bc4 {[%clk 0:04:48]} 4... d5 {[%clk 0:04:55]} 5. exd5 {[%clk 0:04:47.1]} 5...
cxd5 {[%clk 0:04:54.9]} 6. Bd3 {[%clk 0:04:45.9]} 6... Nc6 {[%clk 0:04:53.3]} 7.
Nf3 {[%clk 0:04:44.9]} 7... Bg4 {[%clk 0:04:52.2]} 8. c3 {[%clk 0:04:38.6]} 8...
Bg7 {[%clk 0:04:50.4]} 9. Bg5 {[%clk 0:04:36.5]} 9... Qb6 {[%clk 0:04:48.7]} 10.
Qc2 {[%clk 0:04:25.9]} 10... Bxf3 {[%clk 0:04:45.9]} 11. gxf3 {[%clk 0:04:24.5]}
11... Rc8 {[%clk 0:04:44.5]} 12. Qe2 {[%clk 0:04:22.9]} 12... e6 {[%clk
0:04:41]} 13. O-O {[%clk 0:04:17.1]} 13... Nge7 {[%clk 0:04:38.6]} 14. Na3
{[%clk 0:04:14.1]} 14... O-O {[%clk 0:04:36.8]} 15. Nb5 {[%clk 0:04:12.5]} 15...
a6 {[%clk 0:04:29.2]} 16. Na3 {[%clk 0:04:08.8]} 16... Qc7 {[%clk 0:04:25.7]}
17. Nc2 {[%clk 0:03:59.2]} 17... b5 {[%clk 0:04:24.1]} 18. a4 {[%clk 0:03:57.1]}
18... b4 {[%clk 0:04:21.8]} 19. Bxa6 {[%clk 0:03:55.9]} 19... Rb8 {[%clk
0:04:17.3]} 20. Bb5 {[%clk 0:03:41.8]} 20... bxc3 {[%clk 0:04:12.9]} 21. bxc3
{[%clk 0:03:41.7]} 21... Na5 {[%clk 0:04:09.1]} 22. Ne3 {[%clk 0:03:31.6]} 22...
Nc8 {[%clk 0:03:52]} 23. Ng2 {[%clk 0:03:18.7]} 23... Nd6 {[%clk 0:03:19.3]} 24.
Bf4 {[%clk 0:03:04.2]} 24... Qb6 {[%clk 0:03:17.1]} 25. Be5 {[%clk 0:02:58]}
25... Bxe5 {[%clk 0:03:10.5]} 26. Qxe5 {[%clk 0:02:53.5]} 26... Nxb5 {[%clk
0:03:04.6]} 27. axb5 {[%clk 0:02:52]} 27... Nc4 {[%clk 0:03:02.4]} 28. Qg5
{[%clk 0:02:46.2]} 28... Qxb5 {[%clk 0:02:54.4]} 29. Nf4 {[%clk 0:02:44.1]}
29... Kh7 {[%clk 0:02:53.4]} 30. Nxh5 {[%clk 0:02:36.7]} 30... gxh5 {[%clk
0:02:51.5]} 31. Qxh5+ {[%clk 0:02:35.8]} 31... Kg7 {[%clk 0:02:50.8]} 32. Kh1
{[%clk 0:02:29.5]} 32... Rg8 {[%clk 0:02:20.5]} 33. Rg1+ {[%clk 0:02:23.7]}
33... Kf8 {[%clk 0:02:19.7]} 34. Rxg8+ {[%clk 0:02:19.5]} 34... Kxg8 {[%clk
0:02:17.5]} 35. Qh6 {[%clk 0:02:18.4]} 35... Qb1+ {[%clk 0:02:04.7]} 36. Rxb1
{[%clk 0:02:17.8]} 36... Rxb1+ {[%clk 0:02:04.4]} 37. Kg2 {[%clk 0:02:17.3]}
37... Nd6 {[%clk 0:02:01]} 38. Qg5+ {[%clk 0:02:16]} 38... Kh7 {[%clk
0:01:52.5]} 39. Qe7 {[%clk 0:01:59.3]} 39... Rb6 {[%clk 0:01:51]} 40. Qc7 {[%clk
0:01:52.8]} 40... Ra6 {[%clk 0:01:50.1]} 41. Kh3 {[%clk 0:01:30.4]} 41... Kg7
{[%clk 0:01:48]} 42. h5 {[%clk 0:01:21]} 42... Nf5 {[%clk 0:01:46]} 43. Qe5+
{[%clk 0:01:18.7]} 43... Kg8 {[%clk 0:01:40.3]} 44. Qf6 {[%clk 0:00:59]} 44...
Ra1 {[%clk 0:01:30.6]} 45. Kg2 {[%clk 0:00:49]} 45... Ra8 {[%clk 0:01:07.2]} 46.
h6 {[%clk 0:00:47.3]} 46... Ra7 {[%clk 0:00:59.1]} 47. Kh3 {[%clk 0:00:38.3]}
47... Kh7 {[%clk 0:00:58]} 48. c4 {[%clk 0:00:22.5]} 48... dxc4 {[%clk
0:00:52.3]} 49. d5 {[%clk 0:00:21.7]} 49... Nxh6 {[%clk 0:00:49]} 50. dxe6
{[%clk 0:00:20.9]} 50... fxe6 {[%clk 0:00:47.2]} 51. Qxe6 {[%clk 0:00:20]} 51...
Rf7 {[%clk 0:00:46.3]} 52. Kg2 {[%clk 0:00:17.5]} 52... c3 {[%clk 0:00:44.7]}
53. Qc6 {[%clk 0:00:16]} 53... Rg7+ {[%clk 0:00:41.7]} 54. Kf1 {[%clk
0:00:15.1]} 54... c2 {[%clk 0:00:38.4]} 55. Qxc2+ {[%clk 0:00:14.4]} 55... Kh8
{[%clk 0:00:38]} 56. f4 {[%clk 0:00:13.9]} 56... Rf7 {[%clk 0:00:36.7]} 57. Qc4
{[%clk 0:00:11.9]} 57... Rf6 {[%clk 0:00:34.6]} 58. Qd4 {[%clk 0:00:11.2]} 58...
Kg7 {[%clk 0:00:33.3]} 59. f3 {[%clk 0:00:11]} 59... Kf7 {[%clk 0:00:31.7]} 60.
Kf2 {[%clk 0:00:10.4]} 60... Nf5 {[%clk 0:00:31]} 61. Qa7+ {[%clk 0:00:10.3]}
61... Kg6 {[%clk 0:00:30.1]} 62. Kg2 {[%clk 0:00:09.4]} 62... Nh4+ {[%clk
0:00:28.5]} 63. Kh3 {[%clk 0:00:08.1]} 63... Nf5 {[%clk 0:00:28.4]} 64. Kg4
{[%clk 0:00:07.3]} 64... Nh6+ {[%clk 0:00:27.3]} 65. Kg3 {[%clk 0:00:06.6]}
65... Nf5+ {[%clk 0:00:27.2]} 66. Kf2 {[%clk 0:00:06.1]} 66... Rf7 {[%clk
0:00:26.6]} 67. Qa6+ {[%clk 0:00:04.8]} 67... Kg7 {[%clk 0:00:25.7]} 68. Qd3
{[%clk 0:00:04.7]} 68... Nh6 {[%clk 0:00:23.3]} 69. Qc3+ {[%clk 0:00:04.4]}
69... Kh7 {[%clk 0:00:22.1]} 70. Qd4 {[%clk 0:00:03.6]} 70... Nf5 {[%clk
0:00:18.4]} 71. Qa4 {[%clk 0:00:02.9]} 71... Kg6 {[%clk 0:00:17]} 72. Ke2 {[%clk
0:00:02.3]} 72... Ng3+ {[%clk 0:00:15.6]} 73. Kf2 {[%clk 0:00:02.2]} 73... Nh5
{[%clk 0:00:14.5]} 74. Ke3 {[%clk 0:00:02.1]} 74... Re7+ {[%clk 0:00:12.9]} 75.
Kf2 {[%clk 0:00:01]} 75... Rf7 {[%clk 0:00:12.8]} 76. f5+ {[%clk 0:00:00.7]}
76... Kxf5 {[%clk 0:00:11.7]} 77. Qg4+ {[%clk 0:00:00.6]} 77... Ke5 {[%clk
0:00:09.7]} 78. Qxh5+ {[%clk 0:00:00.5]} 78... Ke6 {[%clk 0:00:08.5]} 0-1

[Event "Live Chess"]
[Site "Chess.com"]
[Date "2024.06.02"]
[Round "-"]
[White "ivan_1968"]
[Black "Kyrylo7770"]
[Result "1-0"]
[WhiteElo "1819"]
[BlackElo "1641"]
[TimeControl "300"]
[EndTime "7:07:13 PDT"]
[Termination "ivan_1968 won by checkmate"]

1. d4 {[%clk 0:04:56.4]} 1... d5 {[%clk 0:04:58.9]} 2. c4 {[%clk 0:04:55.7]}
2... Bg4 {[%clk 0:04:58.3]} 3. cxd5 {[%clk 0:04:52.8]} 3... Qxd5 {[%clk
0:04:56.6]} 4. Nc3 {[%clk 0:04:51]} 4... Qd8 {[%clk 0:04:55.8]} 5. f3 {[%clk
0:04:49.5]} 5... Bh5 {[%clk 0:04:54.4]} 6. e4 {[%clk 0:04:49]} 6... Nf6 {[%clk
0:04:53]} 7. Bc4 {[%clk 0:04:47.5]} 7... e6 {[%clk 0:04:51.8]} 8. Nge2 {[%clk
0:04:46.8]} 8... Bb4 {[%clk 0:04:50.3]} 9. O-O {[%clk 0:04:44.9]} 9... O-O
{[%clk 0:04:49.2]} 10. a3 {[%clk 0:04:42.1]} 10... Ba5 {[%clk 0:04:47.8]} 11.
Be3 {[%clk 0:04:38]} 11... c6 {[%clk 0:04:46.5]} 12. Nf4 {[%clk 0:04:26]} 12...
Bg6 {[%clk 0:04:45]} 13. Qe2 {[%clk 0:04:15.1]} 13... Bc7 {[%clk 0:04:42.6]} 14.
Rad1 {[%clk 0:04:11.6]} 14... Qe7 {[%clk 0:04:25.2]} 15. Nxg6 {[%clk 0:03:47]}
15... fxg6 {[%clk 0:04:22.7]} 16. Bg5 {[%clk 0:03:37.8]} 16... Qf7 {[%clk
0:04:14.4]} 17. d5 {[%clk 0:03:23.5]} 17... cxd5 {[%clk 0:04:12.1]} 18. exd5
{[%clk 0:03:22]} 18... Qd7 {[%clk 0:03:57.4]} 19. dxe6 {[%clk 0:03:12.8]} 19...
Qe7 {[%clk 0:03:52.9]} 20. Nd5 {[%clk 0:03:05.5]} 20... Qc5+ {[%clk 0:03:50.2]}
21. Kh1 {[%clk 0:03:00.8]} 21... Qd6 {[%clk 0:03:42.9]} 22. Nxf6+ {[%clk
0:02:56.4]} 22... gxf6 {[%clk 0:03:41.1]} 23. Rxd6 {[%clk 0:02:55.9]} 23... Bxd6
{[%clk 0:03:40.6]} 24. e7+ {[%clk 0:02:53.5]} 24... Rf7 {[%clk 0:03:37.1]} 25.
e8=Q+ {[%clk 0:02:51]} 25... Kg7 {[%clk 0:03:36.2]} 26. Qxf7+ {[%clk 0:02:48.3]}
26... Kh8 {[%clk 0:03:34.7]} 27. Bxf6# {[%clk 0:02:47.3]} 1-0